bitfinex/quotes_SOLUSD_20250406
["timestamp","ask_amount","ask_price","bid_price","bid_amount"]
[1743948500072,7.949,114.94,114.88,24.88491043]
[1743948500303,7.949,114.94,114.9,18.64964886]
[1743948500866,1.8585,114.94,114.9,18.64964886]
[1743948501099,7.3196,114.95,114.91,0.14216157]
[1743948501473,0.03,114.94,114.91,0.14216157]
[1743948501977,0.03,114.94,114.92,6.0911]
[1743948502482,0.03,114.94,114.93,0.14216157]
[1743948502672,0.03,114.94,114.93,0.42648471]
[1743948503294,0.03,114.94,114.93,0.14216157]
[1743948503672,0.03,114.94,114.93,48.79181043]
[1743948504182,0.03,114.94,114.93,54.88241043]
[1743948504378,0.03,114.94,114.93,55.16673357]
[1743948504584,0.03,114.96,114.95,0.14216157]
[1743948505307,0.03,114.96,114.95,30.14216157]
[1743948506077,0.03,114.96,114.95,36.23176157]
[1743948508400,0.03,114.96,114.95,55.16573357]
[1743948508983,0.03,114.96,114.95,54.73924886]
[1743948509583,0.03,114.96,114.95,54.88141043]
[1743948509796,0.03,114.96,114.95,54.73924886]
[1743948509992,0.03,114.96,114.95,55.16573357]
[1743948510190,0.03,114.99,114.97,0.28432314]
[1743948510375,0.03,114.99,114.97,40.64648471]
[1743948510683,0.03,114.99,114.97,40.22]
[1743948511278,0.03,114.99,114.97,10.22]
[1743948511800,0.03,114.99,114.95,331.6894]
[1743948512004,0.03,114.99,114.95,325.6]
[1743948512199,1.8751,114.98,114.95,325.6]
[1743948512376,33.9631,114.98,114.9,15.2302]
[1743948512582,7.5487,114.97,114.89,6.0927]
[1743948512778,0.28432314,114.96,114.89,6.0927]
[1743948513091,82.22648471,114.96,114.9,30.0]
[1743948513397,81.8,114.96,114.9,30.0]
[1743948513902,0.28432314,114.95,114.9,30.0]
[1743948514086,1.8094,114.94,114.9,30.0]
[1743948514281,7.7131,114.92,114.9,30.0]
[1743948515282,0.28432314,114.91,114.9,30.0]
[1743948515597,7.7131,114.92,114.86,6.0943]
[1743948515807,7.7131,114.92,114.86,36.0943]
[1743948518186,13.8043,114.92,114.86,36.0943]
[1743948519204,13.8043,114.92,114.86,30.0]
[1743948519516,0.28432314,114.91,114.86,30.0]
[1743948520210,0.28432314,114.91,114.86,36.0942]
[1743948520396,13.08862314,114.92,114.86,36.0942]
[1743948522315,6.99742314,114.92,114.86,36.0942]
[1743948523012,6.99742314,114.92,114.87,18.64964886]
[1743948524010,6.99742314,114.92,114.88,6.0933]
[1743948524191,6.99742314,114.92,114.88,21.3265]
[1743948525200,81.8,114.93,114.89,18.64964886]
[1743948525523,1.8094,114.94,114.88,21.3265]
[1743948526224,1.8094,114.94,114.89,30.0]
[1743948527919,1.8094,114.94,114.88,21.3265]
[1743948528316,26.0,114.92,114.88,6.0933]
[1743948529521,83.6094,114.94,114.88,6.0933]
[1743948529522,83.6094,114.94,114.88,21.3265]
[1743948530120,83.6094,114.94,114.88,18.64964886]
[1743948530411,81.8,114.94,114.89,0.42648471]
[1743948531006,81.8,114.94,114.88,18.64964886]
[1743948531917,26.0,114.96,114.89,0.42648471]
[1743948532215,26.0,114.96,114.9,21.3228]
[1743948532419,26.0,114.96,114.91,18.64964886]
[1743948532616,1.9098,114.97,114.91,18.64964886]
[1743948533115,1.9098,114.97,114.92,0.42648471]
[1743948533325,99.9613,114.99,114.92,0.42648471]
[1743948534422,99.9613,114.99,114.93,6.0906]
[1743948535722,99.9613,114.99,114.93,21.3172]
[1743948536418,89.7613,114.99,114.93,21.3172]
[1743948538427,89.7613,114.99,114.93,6.0906]
[1743948538601,95.8488,114.99,114.93,6.0906]
[1743948539418,89.7613,114.99,114.93,6.0906]
[1743948539926,26.0,114.96,114.89,17.1778]
[1743948540123,26.0,114.96,114.9,30.0]
[1743948540627,26.0,114.96,114.9,36.0922]
[1743948540928,113.8892,114.96,114.9,30.0]
[1743948541132,124.0892,114.96,114.89,0.063]
[1743948541317,124.0892,114.96,114.89,30.063]
[1743948542033,82.22648471,114.95,114.89,36.1556]
[1743948542410,1.9644,114.94,114.89,36.1556]
[1743948542843,89.51238471,114.93,114.89,30.063]
[1743948543519,89.51238471,114.93,114.89,0.063]
[1743948545236,81.8,114.93,114.89,0.063]
[1743948545835,87.8907,114.93,114.89,0.063]
[1743948546842,7.2859,114.96,114.89,18.71264886]
[1743948547130,81.8,114.98,114.91,6.0917]
[1743948547346,81.8,114.98,114.91,21.321]
[1743948548526,81.8,114.98,114.92,18.64964886]
[1743948549241,0.03,114.99,114.94,21.3154]
[1743948549444,26.03,114.99,114.94,23.2397]
[1743948550030,0.03,114.99,114.94,23.2397]
[1743948550430,0.03,114.99,114.95,18.64964886]
[1743948551222,0.03,114.99,114.96,21.3116]
[1743948551421,0.03,114.99,114.97,18.64964886]
[1743948553642,0.0001,114.99,114.98,25.16413357]
[1743948553847,0.03,115.06,114.99,19.07613357]
[1743948554027,0.03,115.06,115.01,19.07613357]
[1743948554552,0.0001,115.06,115.03,19.07613357]
[1743948554769,0.0001,115.06,115.03,344.67613357]
[1743948555561,0.0001,115.06,115.04,6.0848]
[1743948556358,0.0001,115.06,115.05,18.79181043]
[1743948556853,0.0001,115.06,115.04,6.0848]
[1743948558127,0.0001,115.06,115.03,331.6851]
[1743948559456,0.0001,115.06,115.03,325.6]
[1743948559651,6.0838,115.06,115.0,5.0]
[1743948560143,0.0001,115.06,115.01,18.79181043]
[1743948561639,0.0001,115.06,115.02,6.0858]
[1743948562047,0.0001,115.06,115.03,18.79181043]
[1743948563635,0.0001,115.06,115.04,6.0848]
[1743948564764,0.0001,115.06,115.02,6.0858]
[1743948565143,0.0001,115.06,115.01,6.0862]
[1743948565346,0.0001,115.06,115.02,30.0]
[1743948565966,0.0001,115.06,115.02,36.0858]
[1743948566663,0.0001,115.06,115.02,6.0858]
[1743948567040,0.0001,115.06,115.01,6.0864]
[1743948567885,0.0001,115.06,115.02,0.42648471]
[1743948568052,0.0001,115.06,115.02,19.07613357]
[1743948569141,0.0001,115.06,115.03,31.4587]
[1743948569359,0.0001,115.06,115.04,19.07613357]
[1743948571151,0.0001,115.06,115.05,6.0843]
[1743948572754,0.03,115.11,115.08,26.0]
[1743948573060,0.03,115.11,115.1,6.0816]
[1743948574852,0.03,115.11,115.09,16.242]
[1743948575052,0.03,115.11,115.05,33.86014886]
[1743948575377,0.03,115.11,115.05,6.0843]
[1743948575564,100.90613357,115.11,115.05,6.0843]
[1743948576070,100.90613357,115.11,115.04,331.3847]
[1743948576367,81.3,115.1,115.05,30.0]
[1743948577258,6.0821,115.09,115.05,30.063]
[1743948577659,81.3,115.1,115.05,6.1472]
[1743948577660,87.3818,115.1,115.05,6.1472]
[1743948577874,81.3,115.1,115.05,6.1472]
[1743948580875,0.03,115.11,115.05,6.1472]
[1743948581176,0.03,115.11,115.05,31.4979]
[1743948582180,0.03,115.11,115.06,19.07613357]
[1743948583277,0.03,115.11,115.07,6.0832]
[1743948583771,0.03,115.11,115.07,21.2913]
[1743948583978,0.03,115.11,115.07,6.0832]
[1743948585186,86.58155324,115.14,115.07,21.2913]
[1743948585359,86.58155324,115.14,115.07,15.2081]
[1743948585882,80.50205324,115.14,115.07,15.2081]
[1743948586086,80.50205324,115.14,115.08,19.07613357]
[1743948587201,86.58175324,115.14,115.07,15.2081]
[1743948587497,86.58175324,115.14,115.07,21.2913]
[1743948587664,86.58175324,115.14,115.08,30.0]
[1743948588597,80.50205324,115.14,115.08,30.0]
[1743948589596,80.50205324,115.14,115.09,6.0821]
[1743948589796,86.58165324,115.14,115.09,6.0821]
[1743948590600,86.61165324,115.14,115.09,6.0821]
[1743948590768,86.61165324,115.14,115.08,0.063]
[1743948590973,99.57818681,115.13,115.08,0.063]
[1743948591570,6.0806,115.12,115.08,0.063]
[1743948592070,86.58215324,115.13,115.08,0.063]
[1743948593703,101.78235324,115.13,115.08,0.063]
[1743948598284,86.58215324,115.13,115.08,0.063]
[1743948599503,101.78235324,115.13,115.08,0.063]
[1743948600808,26.0,115.09,115.08,0.063]
[1743948601100,33.6173,115.09,115.08,0.063]
[1743948601897,39.6994,115.09,115.08,0.063]
[1743948602798,33.6173,115.09,115.08,0.063]
[1743948603299,39.6994,115.09,115.08,0.063]
[1743948604773,58.77553357,115.09,115.08,0.063]
[1743948608298,139.27758681,115.09,115.08,0.063]
[1743948611003,113.27758681,115.09,115.08,0.063]
[1743948612884,32.77553357,115.09,115.08,0.063]
[1743948613698,45.07613357,115.06,115.05,0.063]
[1743948615102,51.15983357,115.06,115.05,0.063]
[1743948616307,26.0,115.06,115.05,0.063]
[1743948616489,6.0834,115.07,115.05,0.063]
[1743948618890,25.15983357,115.06,115.05,0.063]
[1743948619097,51.15983357,115.06,115.05,0.063]
[1743948621002,25.15983357,115.06,115.05,0.063]
[1743948621196,51.15983357,115.06,115.05,0.063]
[1743948621597,25.15983357,115.06,115.05,0.063]
[1743948622102,51.15983357,115.06,115.05,0.063]
[1743948622312,45.07613357,115.06,115.05,0.063]
[1743948622501,51.15983357,115.06,115.05,0.063]
[1743948626922,18.79181043,115.09,115.05,0.063]
[1743948628193,6.0818,115.1,115.05,0.063]
[1743948628614,0.14216157,115.11,115.05,0.063]
[1743948628817,18.79181043,115.11,115.05,0.063]
[1743948629303,6.0802,115.13,115.06,1.8594]
[1743948629505,6.0802,115.13,115.06,9.6861]
[1743948629821,81.8,115.13,115.06,9.6861]
[1743948630122,0.03,115.09,115.07,6.0832]
[1743948631114,0.03,115.09,115.08,10.1]
[1743948631624,0.03,115.14,115.1,1.8594]
[1743948631832,0.03,115.14,115.11,7.8267]
[1743948632226,0.03,115.14,115.11,13.9073]
[1743948633439,0.03,115.14,115.11,29.1101]
[1743948634631,0.03,115.14,115.11,13.9073]
[1743948635223,0.03,115.14,115.1,1.8594]
[1743948635937,0.03,115.14,115.1,7.9409]
[1743948638513,0.03,115.14,115.11,19.07613357]
[1743948640233,0.03,115.14,115.12,7.7121]
[1743948640435,0.03,115.14,115.13,6.08]
[1743948640733,0.03,115.14,115.13,25.15613357]
[1743948641123,0.0001,115.14,115.13,25.15613357]
[1743948641331,81.83,115.21,115.15,19.07613357]
[1743948641655,87.9059,115.21,115.16,10.08]
[1743948642715,87.9059,115.21,115.14,8.0314]
[1743948642920,87.4059,115.21,115.14,8.0314]
[1743948643123,26.0,115.17,115.12,7.7121]
[1743948643444,26.0,115.17,115.12,10.08]
[1743948643627,26.0,115.17,115.11,345.64264886]
[1743948643829,26.0,115.17,115.12,30.0]
[1743948644139,26.0,115.17,115.11,337.073]
[1743948644336,26.0,115.17,115.12,6.0804]
[1743948644515,32.0781,115.17,115.12,6.0804]
[1743948645724,26.0,115.17,115.12,6.0804]
[1743948645919,6.0776,115.18,115.12,6.0804]
[1743948646338,6.0769,115.19,115.12,6.0804]
[1743948647345,81.33,115.2,115.13,19.07613357]
[1743948647725,7.8755,115.22,115.13,19.07613357]
[1743948648551,81.47216157,115.21,115.12,21.2819]
[1743948649039,18.933972,115.2,115.12,6.0804]
[1743948649220,6.0769,115.19,115.12,6.0804]
[1743948649419,6.0763,115.2,115.12,6.0804]
[1743948649851,6.0763,115.2,115.12,21.2819]
[1743948650821,24.72594886,115.2,115.12,6.0804]
[1743948651139,18.933972,115.19,115.12,6.0804]
[1743948651344,6.0774,115.18,115.12,6.0804]
[1743948655851,0.03,115.23,115.14,1.9634]
[1743948656036,81.33,115.22,115.14,12.0234]
[1743948656840,81.33,115.22,115.14,1.9634]
[1743948657051,6.0758,115.21,115.15,6.079]
[1743948657427,81.33,115.22,115.15,6.079]
[1743948658047,87.4054,115.22,115.15,6.079]
[1743948658733,81.33,115.22,115.15,21.2765]
[1743948658934,87.4053,115.22,115.15,31.3365]
[1743948660536,87.4053,115.22,115.15,16.139]
[1743948661843,19.07613357,115.21,115.14,8.0428]
[1743948662435,25.15223357,115.21,115.14,8.0428]
[1743948662635,6.0761,115.21,115.14,8.0428]
[1743948662837,24.72574886,115.21,115.14,8.0428]
[1743948663033,19.07613357,115.2,115.14,8.0428]
[1743948664140,6.0761,115.21,115.14,8.0428]
[1743948664345,24.72574886,115.21,115.14,8.0428]
[1743948664654,6.0761,115.21,115.14,23.2416]
[1743948666349,81.33,115.22,115.15,0.42648471]
[1743948666547,81.33,115.22,115.15,19.07613357]
[1743948666849,81.33,115.22,115.17,19.07613357]
[1743948667033,81.33,115.22,115.16,10.06]
[1743948667034,26.03,115.23,115.18,9.3836]
[1743948667636,0.03,115.23,115.18,9.3836]
[1743948667831,0.03,115.23,115.19,21.2691]
[1743948668127,0.0001,115.23,115.22,26.0]
[1743948668352,0.0001,115.23,115.22,10.06]
[1743948669226,0.0001,115.23,115.21,1.9189]
[1743948670355,0.0001,115.23,115.21,7.9944]
[1743948671144,0.0001,115.23,115.22,19.07613357]
[1743948671660,0.0001,115.23,115.21,7.9944]
[1743948671830,0.0001,115.23,115.21,1.9189]
[1743948672031,0.0001,115.23,115.18,9.4042]
[1743948672236,0.0001,115.23,115.18,1.9395]
[1743948672443,32.0749,115.23,115.18,1.9395]
[1743948672827,6.0749,115.23,115.18,8.0169]
[1743948673152,0.0001,115.23,115.18,8.0169]
[1743948679057,0.0001,115.23,115.18,23.2105]
[1743948679657,0.0001,115.23,115.19,0.28432314]
[1743948679847,0.0001,115.23,115.2,10.04]
[1743948680564,0.0001,115.23,115.22,7.3937]
[1743948681146,81.33,115.31,115.22,28.43293357]
[1743948681739,81.33,115.31,115.24,19.07613357]
[1743948681943,81.33,115.31,115.25,334.92]
[1743948682267,87.4006,115.31,115.25,334.92]
[1743948682762,26.0,115.28,115.25,324.88]
[1743948682987,81.33,115.3,115.25,324.88]
[1743948683967,6.0716,115.29,115.25,324.88]
[1743948684140,81.33,115.28,115.25,324.88]
[1743948684345,81.33,115.28,115.21,30.0]
[1743948684542,81.33,115.27,115.21,6.0757]
[1743948684951,81.33,115.27,115.21,21.2653]
[1743948686162,81.33,115.27,115.21,15.1896]
[1743948686369,87.4027,115.27,115.2,6.0763]
[1743948689850,81.33,115.27,115.2,21.2672]
[1743948690248,0.03,115.28,115.21,19.07613357]
[1743948691454,0.03,115.28,115.22,1.8911]
[1743948691655,0.03,115.28,115.24,19.07613357]
[1743948692173,0.03,115.28,115.26,19.07613357]
[1743948692353,0.03,115.28,115.25,6.0737]
[1743948693049,81.33,115.38,115.28,33.78576157]
[1743948693269,21.2286,115.41,115.3,0.42648471]
[1743948693588,26.0,115.37,115.29,336.7111]
[1743948693791,26.0,115.35,115.29,336.7111]
[1743948694154,81.33,115.38,115.29,340.8914]
[1743948694370,81.33,115.38,115.3,19.07613357]
[1743948694567,87.3969,115.38,115.29,356.0705]
[1743948694858,26.0,115.35,115.29,340.8914]
[1743948696463,32.0685,115.35,115.29,340.8914]
[1743948697969,32.0685,115.35,115.29,324.8]
[1743948698176,7.8152,115.33,115.29,324.8]
[1743948700314,13.8849,115.33,115.29,324.8]
[1743948701298,87.3991,115.34,115.29,330.8716]
[1743948701616,81.33,115.34,115.29,330.8716]
[1743948701983,81.33,115.33,115.29,324.8]
[1743948702386,87.4,115.33,115.29,324.8]
[1743948703041,81.33,115.32,115.29,324.8]
[1743948703301,81.33,115.32,115.25,6.0735]
[1743948704390,6.0705,115.31,115.24,6.0742]
[1743948704578,6.0705,115.31,115.25,30.0]
[1743948704780,6.0705,115.31,115.24,6.0742]
[1743948708490,13.8857,115.31,115.24,6.0742]
[1743948708696,13.8857,115.31,115.23,7.8649]
[1743948708904,29.0621,115.31,115.23,7.8649]
[1743948709714,26.0,115.28,115.22,330.7352]
[1743948710885,26.0,115.28,115.22,329.7352]
[1743948711508,6.0726,115.27,115.22,329.7352]
[1743948714087,91.33,115.3,115.22,344.9235]
[1743948714388,87.4011,115.3,115.22,344.9235]
[1743948714586,87.4011,115.3,115.22,329.7352]
[1743948715583,81.33,115.29,115.22,329.7352]
[1743948715803,6.0721,115.28,115.22,329.7352]
[1743948717310,6.0721,115.28,115.22,323.66]
[1743948717814,6.0721,115.28,115.22,329.7352]
[1743948718210,6.0721,115.28,115.22,329.7982]
[1743948718412,6.0721,115.28,115.22,323.723]
[1743948718594,6.0721,115.28,115.22,329.7982]
[1743948719014,26.0,115.26,115.22,323.723]
[1743948719221,6.0737,115.25,115.22,323.723]
[1743948719401,81.33,115.29,115.22,323.723]
[1743948720519,26.0,115.26,115.22,323.723]
[1743948721127,26.0,115.26,115.22,0.063]
[1743948721316,32.0734,115.26,115.22,0.063]
[1743948723715,45.07613357,115.23,115.22,0.063]
[1743948725017,49.48325657,115.23,115.22,0.063]
[1743948725221,0.0405,115.27,115.22,0.063]
[1743948725943,0.0405,115.27,115.23,10.0]
[1743948726728,0.0405,115.27,115.24,6.0742]
[1743948727237,0.0405,115.27,115.24,21.2598]
[1743948729905,0.0405,115.27,115.24,6.0742]
[1743948730211,0.0405,115.27,115.24,21.2598]
[1743948731521,0.0405,115.27,115.23,9.98]
[1743948731522,0.0405,115.27,115.23,6.0746]
[1743948732526,0.0405,115.27,115.22,6.1383]
[1743948734526,0.0405,115.27,115.22,39.97624886]
[1743948737321,0.0405,115.27,115.22,70.35284886]
[1743948740745,0.0405,115.27,115.23,19.07613357]
[1743948741340,0.0405,115.27,115.24,21.2598]
[1743948743636,0.0405,115.27,115.22,51.7032]
[1743948744147,0.0405,115.27,115.23,19.07613357]
[1743948744350,0.0405,115.27,115.24,7.286]
[1743948744351,0.0001,115.27,115.24,7.286]
[1743948744554,0.0001,115.27,115.26,19.07613357]
[1743948744859,0.0301,115.27,115.26,29.05613357]
[1743948745951,0.0301,115.27,115.26,35.12933357]
[1743948746244,0.0001,115.27,115.26,35.12933357]
[1743948746647,81.8,115.35,115.26,111.04453357]
[1743948746856,7.8219,115.37,115.26,111.04453357]
[1743948747036,7.8219,115.37,115.27,1.9872]
[1743948747345,7.8219,115.37,115.29,0.14216157]
[1743948747558,81.8,115.39,115.29,332.08816157]
[1743948748062,81.8,115.39,115.31,19.07613357]
[1743948748248,81.8,115.39,115.32,9.96]
[1743948748850,87.8665,115.39,115.3,21.2488]
[1743948749236,81.8,115.38,115.3,21.2488]
[1743948749427,81.8,115.38,115.31,19.07613357]
[1743948750049,13.8878,115.4,115.33,6.0695]
[1743948750260,7.8219,115.4,115.34,9.96]
[1743948750747,13.8879,115.4,115.34,9.96]
[1743948750953,13.8879,115.4,115.33,6.0695]
[1743948751131,13.8879,115.4,115.32,17.876]
[1743948751544,100.87613357,115.39,115.3,6.0711]
[1743948751748,81.8,115.39,115.3,21.2488]
[1743948752125,81.8,115.39,115.31,19.07613357]
[1743948752555,87.8665,115.39,115.31,19.07613357]
[1743948754129,81.8,115.39,115.32,21.2451]
[1743948754852,87.8664,115.39,115.3,9.96]
[1743948755148,103.0323,115.39,115.3,16.0311]
[1743948755447,81.8,115.38,115.3,6.0711]
[1743948755829,26.0,115.35,115.29,349.8237]
[1743948756034,0.14216157,115.36,115.29,336.4662]
[1743948756234,6.0684,115.35,115.29,342.5376]
[1743948756443,6.0684,115.35,115.29,332.5776]
[1743948756951,6.0684,115.35,115.29,326.5062]
[1743948757451,115.0261,115.34,115.25,22.7796476]
[1743948757750,81.8,115.33,115.25,21.4188476]
[1743948758131,6.07,115.32,115.25,7.8634]
[1743948759155,21.2451,115.32,115.25,1.7899]
[1743948759461,21.2451,115.32,115.25,7.8635]
[1743948759632,21.2451,115.32,115.27,0.063]
[1743948760758,100.87613357,115.31,115.27,0.063]
[1743948760965,81.8,115.3,115.27,0.063]
[1743948761156,45.07613357,115.28,115.27,0.063]
[1743948761536,45.07613357,115.28,115.22,0.063]
[1743948761537,19.07613357,115.27,115.22,0.063]
[1743948762337,21.2562,115.26,115.22,0.063]
[1743948763560,6.0732,115.26,115.22,0.063]
[1743948763761,35.96,115.28,115.22,0.063]
[1743948763941,32.0723,115.28,115.22,0.063]
[1743948764144,9.1991,115.29,115.22,0.063]
[1743948764458,15.2709,115.29,115.22,6.1383]
[1743948766765,15.2709,115.29,115.22,0.063]
[1743948766972,26.0,115.26,115.22,0.063]
[1743948767979,6.0737,115.25,115.22,0.063]
[1743948768150,113.8733,115.26,115.22,0.063]
[1743948768669,107.8,115.26,115.22,0.063]
[1743948771451,113.8733,115.26,115.22,0.063]
[1743948771848,87.8733,115.26,115.22,0.063]
[1743948772046,81.8,115.26,115.22,0.063]
[1743948777469,87.8733,115.26,115.22,0.063]
[1743948778052,81.8,115.26,115.22,0.063]
[1743948778381,81.8,115.26,115.22,7.8151]
[1743948778582,0.03,115.27,115.22,7.8151]
[1743948778889,0.03,115.27,115.23,11.8213]
[1743948779588,0.03,115.27,115.24,6.0742]
[1743948780285,0.03,115.27,115.23,17.8958]
[1743948780456,0.03,115.27,115.22,0.063]
[1743948780961,81.83,115.27,115.22,6.1382]
[1743948781677,81.83,115.27,115.22,0.063]
[1743948783885,87.9028,115.27,115.22,0.063]
[1743948786971,81.83,115.27,115.22,0.063]
[1743948787664,0.03,115.27,115.23,9.1728]
[1743948787860,0.03,115.27,115.24,21.2598]
[1743948788107,0.03,115.27,115.24,31.1998]
[1743948788289,6.0688,115.35,115.26,1.9857]
[1743948788479,13.536,115.36,115.26,1.9857]
[1743948788856,102.76733357,115.38,115.27,26.26323357]
[1743948788857,6.0676,115.37,115.27,26.26323357]
[1743948789060,87.8676,115.37,115.27,26.26323357]
[1743948789272,26.0,115.34,115.27,7.1871]
[1743948790091,6.0695,115.33,115.28,6.0721]
[1743948790471,81.8,115.37,115.28,6.0721]
[1743948790673,81.8,115.37,115.28,21.2525]
[1743948790674,87.8676,115.37,115.28,21.2525]
[1743948790899,87.8676,115.37,115.29,9.92]
[1743948791867,87.8676,115.37,115.3,21.2488]
[1743948792603,87.8676,115.37,115.31,1.8105]
[1743948793139,87.8674,115.37,115.31,1.8105]
[1743948793901,87.8674,115.37,115.32,6.07]
[1743948794805,81.8,115.37,115.32,6.07]
[1743948794975,87.8675,115.37,115.32,6.07]
[1743948795399,87.8675,115.37,115.31,7.8808]
[1743948795615,87.8675,115.37,115.31,1.8105]
[1743948796193,81.8,115.36,115.28,7.7781]
[1743948796377,81.8,115.35,115.28,7.7781]
[1743948797288,6.069,115.34,115.28,7.7781]
[1743948797488,87.8686,115.35,115.28,7.7781]
[1743948799019,0.03,115.39,115.32,9.411]
[1743948799193,0.03,115.39,115.33,9.92]
[1743948800020,0.03,115.35,115.33,9.92]
[1743948800225,0.03,115.35,115.34,6.069]
[1743948802099,0.03,115.39,115.34,40.31763357]
[1743948803412,0.03,115.39,115.34,21.2415]
[1743948803915,26.03,115.39,115.33,6.0693]
[1743948804118,0.03,115.39,115.33,6.0693]
[1743948804324,32.0965,115.39,115.33,6.0693]
[1743948809497,0.03,115.39,115.33,6.0693]
[1743948810010,6.0964,115.39,115.33,6.0693]
[1743948810833,0.03,115.39,115.34,0.14216157]
[1743948811009,0.03,115.39,115.34,19.07613357]
[1743948811942,0.03,115.39,115.33,21.2431]
[1743948815244,26.03,115.39,115.33,15.9693]
[1743948815546,26.03,115.39,115.33,31.1431]
[1743948816328,0.03,115.39,115.33,31.1431]
[1743948817421,0.03,115.39,115.35,0.42648471]
[1743948818332,0.0001,115.39,115.35,127.54613357]
[1743948818537,0.0001,115.39,115.37,19.07613357]
[1743948818739,0.0001,115.39,115.38,9.9]
[1743948819256,7.3883,115.49,115.41,26.0]
[1743948819424,7.3883,115.49,115.42,21.2268]
[1743948819840,7.3883,115.49,115.43,9.88]
[1743948820323,13.4494,115.49,115.43,9.88]
[1743948821040,6.0611,115.49,115.43,9.88]
[1743948821243,6.0609,115.5,115.43,9.88]
[1743948821544,18.79181043,115.5,115.43,9.88]
[1743948821923,81.8,115.5,115.43,15.9441]
[1743948822126,81.8,115.5,115.41,15.945]
[1743948822427,100.87613357,115.49,115.41,6.065]
[1743948823161,26.0,115.46,115.4,332.2882]
[1743948823342,6.063,115.46,115.4,332.2882]
[1743948823550,32.063,115.46,115.4,332.2882]
[1743948826049,26.0,115.46,115.4,332.2882]
[1743948827956,32.0629,115.46,115.4,332.2882]
[1743948829053,32.0629,115.46,115.4,326.2226]
[1743948829258,32.0629,115.46,115.4,332.2884]
[1743948829556,6.0629,115.46,115.4,332.2884]
[1743948830057,21.2175,115.47,115.4,326.2226]
[1743948830255,6.0616,115.48,115.41,6.0653]
[1743948830959,87.8613,115.49,115.41,6.0653]
[1743948831149,0.03,115.51,115.43,19.07613357]
[1743948831337,6.0903,115.51,115.43,9.88]
[1743948831537,21.2405,115.51,115.43,9.88]
[1743948832146,6.0621,115.47,115.43,9.88]
[1743948834263,21.213,115.5,115.43,9.88]
[1743948835244,6.0606,115.5,115.43,15.9438]
[1743948835443,87.8902,115.51,115.43,15.9438]
[1743948838063,19.07613357,115.5,115.43,9.88]
[1743948838248,19.07613357,115.5,115.42,1.7556]
[1743948838443,19.07613357,115.5,115.42,7.8202]
[1743948839361,6.0611,115.49,115.42,7.8202]
[1743948840270,0.03,115.51,115.45,1.8724]
[1743948840475,6.0901,115.51,115.45,11.7324]
[1743948841557,0.03,115.51,115.45,11.7324]
[1743948841970,0.03,115.51,115.45,17.7955]
[1743948842351,0.03,115.51,115.45,11.7324]
[1743948842554,26.0,115.49,115.45,1.8724]
[1743948842858,26.0,115.49,115.42,1.8724]
[1743948843046,26.0,115.49,115.44,30.0]
[1743948843667,6.0616,115.48,115.44,30.0]
[1743948845272,32.0613,115.49,115.44,36.0636]
[1743948845476,0.03,115.51,115.44,36.0636]
[1743948846067,26.0,115.49,115.44,36.0636]